bitfinex/quotes_BTCUSD_20250421
["timestamp","ask_amount","ask_price","bid_price","bid_amount"]
[1745258537060,0.23077153,86666.0,86663.0,0.23077819]
[1745258537441,0.01153868,86665.0,86660.0,0.01153934]
[1745258537654,0.23078491,86661.0,86659.0,0.01153948]
[1745258537910,0.23077958,86663.0,86660.0,0.24232632]
[1745258538074,0.23080443,86654.0,86651.0,0.01596284]
[1745258538376,0.23080443,86654.0,86637.0,0.00499733]
[1745258538377,0.13914433,86653.0,86637.0,0.00499733]
[1745258538515,0.13914433,86653.0,86610.0,4.001e-05]
[1745258538516,0.23088822,86622.0,86621.0,0.0038447]
[1745258538684,0.57089355,86620.0,86619.0,1e-08]
[1745258538891,0.58127193,86620.0,86619.0,1e-08]
[1745258539091,0.34,86619.0,86618.0,1e-08]
[1745258539519,0.339,86619.0,86618.0,1e-08]
[1745258539729,0.45275594,86619.0,86618.0,1e-08]
[1745258539932,0.11976416,86619.0,86618.0,1e-08]
[1745258540559,0.12376416,86619.0,86618.0,1e-08]
[1745258542149,0.12776416,86619.0,86618.0,1e-08]
[1745258544734,0.01400822,86619.0,86618.0,1e-08]
[1745258545615,0.01000822,86619.0,86618.0,1e-08]
[1745258545840,0.00800822,86619.0,86618.0,1e-08]
[1745258546277,0.01200822,86619.0,86618.0,1e-08]
[1745258547160,0.01200822,86619.0,86618.0,2.00000001]
[1745258550405,0.12576416,86619.0,86618.0,2.00000001]
[1745258550624,0.29576416,86619.0,86618.0,2.00000001]
[1745258550835,0.54266416,86619.0,86618.0,2.00000001]
[1745258553228,0.77356038,86619.0,86618.0,2.00000001]
[1745258555227,0.95170123,86619.0,86618.0,0.70582761]
[1745258555889,0.94570123,86619.0,86618.0,0.70582761]
[1745258556138,0.93316038,86619.0,86618.0,0.70582761]
[1745258556363,0.88756038,86619.0,86618.0,0.70582761]
[1745258556601,0.88556038,86619.0,86618.0,0.70582761]
[1745258557055,0.89056038,86619.0,86618.0,0.70682761]
[1745258557497,0.88156038,86619.0,86618.0,0.70582761]
[1745258557981,0.35766038,86619.0,86618.0,0.70582761]
[1745258558115,0.35166038,86619.0,86618.0,0.70582761]
[1745258558319,0.35666038,86619.0,86618.0,0.70582761]
[1745258558533,0.35966038,86619.0,86618.0,0.70682761]
[1745258558744,0.12876416,86619.0,86618.0,0.70682761]
[1745258559171,0.35166038,86619.0,86618.0,0.70582761]
[1745258559589,0.35466038,86619.0,86618.0,0.70682761]
[1745258560137,0.35166038,86619.0,86618.0,0.70582761]
[1745258560338,0.35366038,86619.0,86618.0,0.70682761]
[1745258560958,0.35866038,86619.0,86618.0,0.70682761]
[1745258561163,0.35366038,86619.0,86618.0,0.70682761]
[1745258561511,0.35866038,86619.0,86618.0,0.70682761]
[1745258561716,0.54366416,86619.0,86618.0,0.70682761]
[1745258562028,0.77456038,86619.0,86618.0,0.70682761]
[1745258562247,0.77356038,86619.0,86618.0,0.70682761]
[1745258562863,0.54266416,86619.0,86618.0,0.70682761]
[1745258564104,0.42890822,86619.0,86618.0,0.93772649]
[1745258564757,0.007,86619.0,86618.0,0.97099626]
[1745258565164,0.005,86619.0,86618.0,0.97099626]
[1745258565365,0.00600822,86638.0,86637.0,0.23084825]
[1745258566228,0.00600822,86638.0,86637.0,0.25233049]
[1745258566634,0.00600822,86638.0,86637.0,0.23084825]
[1745258568048,0.01000822,86638.0,86637.0,0.23184825]
[1745258568606,0.01100822,86638.0,86637.0,0.23184825]
[1745258569061,0.35560974,86638.0,86637.0,0.001]
[1745258569264,0.12476416,86638.0,86637.0,0.001]
[1745258569622,0.01100822,86638.0,86637.0,0.001]
[1745258570728,0.005,86638.0,86637.0,0.001]
[1745258571335,0.005,86638.0,86637.0,0.00330831]
[1745258572535,0.005,86638.0,86637.0,0.001]
[1745258577041,0.005,86638.0,86637.0,0.23184825]
[1745258578748,0.005,86638.0,86637.0,0.23415659]
[1745258579057,0.0008436,86673.0,86653.0,0.23080562]
[1745258579250,0.00600822,86663.0,86653.0,0.39737333]
[1745258579423,0.0008436,86673.0,86653.0,0.39506562]
[1745258580399,0.01153775,86672.0,86653.0,0.39506562]
[1745258580797,0.0008436,86673.0,86653.0,0.39506562]
[1745258581214,0.0028436,86654.0,86653.0,0.39506562]
[1745258581624,0.0008436,86673.0,86653.0,0.86336241]
[1745258581807,0.0008436,86673.0,86672.0,0.28005503]
[1745258583298,0.0018436,86673.0,86672.0,0.28005503]
[1745258583445,0.0018436,86673.0,86672.0,0.23075503]
[1745258584636,0.0008436,86673.0,86672.0,0.23075503]
[1745258584813,0.0018436,86673.0,86672.0,0.23075503]
[1745258585367,0.0018436,86673.0,86672.0,0.45575182]
[1745258586734,0.004,86679.0,86678.0,0.23073905]
[1745258587994,0.004,86679.0,86678.0,0.69903584]
[1745258588166,1e-08,86679.0,86678.0,0.69903584]
[1745258588397,1e-08,86679.0,86678.0,0.70003584]
[1745258588747,1e-08,86679.0,86678.0,0.69903584]
[1745258589181,1e-08,86679.0,86678.0,0.70003584]
[1745258589385,1e-08,86679.0,86678.0,0.69903584]
[1745258589731,1e-08,86679.0,86678.0,1.16473584]
[1745258590505,1e-08,86679.0,86678.0,0.61743905]
[1745258592234,1e-08,86679.0,86678.0,0.73287905]
[1745258592442,1e-08,86679.0,86678.0,0.73387905]
[1745258592842,0.00100001,86679.0,86678.0,0.73287905]
[1745258593514,1e-08,86679.0,86678.0,0.86117584]
[1745258593726,1e-08,86689.0,86688.0,0.23071244]
[1745258593936,1e-08,86689.0,86688.0,0.57301904]
[1745258594132,1e-08,86689.0,86688.0,0.57071244]
[1745258595238,1e-08,86689.0,86688.0,0.69900923]
[1745258595595,0.00100001,86689.0,86688.0,0.69900923]
[1745258599133,0.0008452,86699.0,86698.0,0.27738582]
[1745258600002,0.0008452,86699.0,86698.0,0.23068582]
[1745258600616,0.0018452,86699.0,86698.0,0.23068582]
[1745258601454,0.01153442,86697.0,86683.0,0.34]
[1745258601671,0.01153442,86697.0,86641.0,1.916072]
[1745258601672,0.23077633,86664.0,86625.0,0.0467]
[1745258601886,0.01153974,86657.0,86645.0,0.01154134]
[1745258602093,0.01154028,86653.0,86648.0,0.01154094]
[1745258602328,0.01154028,86653.0,86649.0,0.01154081]
[1745258602540,0.01154014,86654.0,86650.0,0.24235331]
[1745258602755,0.01154001,86655.0,86652.0,0.23080733]
[1745258603172,0.24234123,86655.0,86652.0,0.23080733]
[1745258603391,0.24234123,86655.0,86651.0,0.01154054]
[1745258603665,0.23080296,86654.0,86640.0,0.01154201]
[1745258603872,0.11375594,86654.0,86641.0,0.23083542]
[1745258604097,0.01154134,86645.0,86642.0,0.24237569]
[1745258604311,0.24235149,86651.0,86647.0,0.01154108]
[1745258604509,0.01154081,86649.0,86644.0,0.2423693]
[1745258604726,0.01154148,86644.0,86636.0,0.01154254]
[1745258604949,0.01154068,86650.0,86642.0,0.01154174]
[1745258605164,0.23081932,86648.0,86642.0,0.24237444]
[1745258605410,0.23082578,86646.0,86642.0,0.01254174]
[1745258605634,0.03285483,86647.0,86643.0,0.01154161]
[1745258605849,0.02131375,86645.0,86643.0,0.2423717]
[1745258606027,0.01154094,86648.0,86645.0,0.24236827]
[1745258606247,0.01154068,86650.0,86647.0,0.24236268]
[1745258606404,0.242356,86650.0,86645.0,0.24236827]
[1745258606619,0.03285737,86649.0,86645.0,0.24236827]
[1745258606814,0.03285737,86649.0,86646.0,0.01154121]
[1745258607157,0.02131656,86648.0,86646.0,0.24236393]
[1745258607504,0.02131656,86647.0,86646.0,0.24236393]
[1745258607877,0.12529648,86651.0,86648.0,0.01154094]
[1745258608087,0.24335429,86650.0,86646.0,0.24236393]
[1745258608282,0.001,86650.0,86647.0,0.01154108]
[1745258608709,0.12529648,86651.0,86647.0,0.01154108]
[1745258609320,0.01154068,86650.0,86646.0,0.24236393]
[1745258609517,0.01154081,86649.0,86646.0,0.24236393]
[1745258609741,0.001,86647.0,86646.0,0.24236393]
[1745258610210,0.01154081,86649.0,86646.0,0.24236393]
[1745258610647,0.24235842,86649.0,86646.0,0.01154121]
[1745258610855,0.24236919,86645.0,86642.0,0.01154174]
[1745258611068,0.01154401,86625.0,86621.0,0.004]
[1745258611274,0.23088793,86623.0,86621.0,0.004]
[1745258611502,0.01154374,86627.0,86623.0,0.24242896]
[1745258611720,0.001,86647.0,86640.0,0.01154201]
[1745258611927,0.37654156,86643.0,86640.0,0.01154201]
[1745258612136,0.24240116,86634.0,86627.0,0.23087411]
[1745258612340,0.01154321,86631.0,86624.0,0.01154414]
[1745258612543,0.11375594,86630.0,86627.0,0.24241652]
[1745258612755,0.11375594,86630.0,86628.0,0.23086992]
[1745258613891,0.23084709,86638.0,86631.0,0.24240609]
[1745258613892,0.24238936,86638.0,86631.0,0.24240609]
[1745258614101,0.01154267,86635.0,86631.0,0.24240609]
[1745258614531,0.01154254,86636.0,86631.0,0.24240609]
[1745258614754,0.01154281,86634.0,86631.0,0.01154321]
[1745258615065,0.01154281,86634.0,86631.0,0.24240662]
[1745258615273,0.23085623,86635.0,86632.0,0.23086041]
[1745258615670,0.23085623,86635.0,86632.0,0.24240348]
[1745258616291,0.23185623,86635.0,86632.0,0.24240348]
[1745258616503,0.11375594,86636.0,86634.0,0.23085624]
[1745258616716,0.11375594,86636.0,86633.0,0.24240185]
[1745258616894,0.001,86635.0,86634.0,0.23085497]
[1745258617317,0.001,86635.0,86632.0,0.24240407]
[1745258617486,0.001,86635.0,86633.0,0.23085701]
[1745258617900,0.24238077,86641.0,86638.0,0.2308445]
[1745258618126,0.01154174,86642.0,86624.0,0.01154414]
[1745258618127,0.01154347,86629.0,86624.0,0.01154414]
[1745258618360,0.11375594,86628.0,86625.0,0.01154401]
[1745258618561,0.01154281,86634.0,86626.0,0.01154387]
[1745258618763,0.2308673,86630.0,86627.0,0.23087364]
[1745258618977,0.00601931,86630.0,86626.0,0.01154387]
[1745258619182,0.01756265,86630.0,86627.0,0.01154374]
[1745258619387,0.01756265,86630.0,86627.0,0.24241775]
[1745258619715,0.00601931,86630.0,86629.0,0.23086957]
[1745258620199,0.00701931,86630.0,86629.0,0.23086957]
[1745258620901,0.00801931,86630.0,86629.0,0.23086957]
[1745258621138,0.00801931,86630.0,86627.0,0.01154374]
[1745258621344,0.00801931,86630.0,86627.0,0.24241782]
[1745258621551,0.00901931,86630.0,86628.0,0.23087141]
[1745258622590,0.00701931,86630.0,86628.0,0.23087141]
[1745258623458,0.00901931,86630.0,86628.0,0.23087141]
[1745258623685,0.003,86630.0,86628.0,0.23087141]
[1745258623840,0.002,86630.0,86628.0,0.23087141]
[1745258624050,0.003,86630.0,86628.0,0.23087141]
[1745258624465,0.002,86630.0,86628.0,0.23087141]
[1745258625087,0.002,86630.0,86629.0,0.23086957]
[1745258625550,0.00601931,86643.0,86628.0,0.23087141]
[1745258625551,0.00601931,86643.0,86642.0,0.23083492]
[1745258625710,0.01756092,86643.0,86639.0,0.01154214]
[1745258625944,0.23083784,86641.0,86639.0,0.01154214]
[1745258626149,0.11375594,86640.0,86638.0,0.23084548]
[1745258626431,0.11375594,86640.0,86639.0,0.23084292]
[1745258626676,0.23083492,86642.0,86638.0,0.24238775]
[1745258626872,0.24237666,86642.0,86638.0,0.24238775]
[1745258627076,0.001,86641.0,86640.0,0.23084025]
[1745258627614,0.001,86641.0,86640.0,0.24238226]
[1745258629861,0.00601931,86643.0,86642.0,0.23083492]
[1745258630868,0.24236412,86647.0,86644.0,0.24236916]
[1745258631234,0.24235954,86649.0,86646.0,0.23082427]
[1745258631439,0.23081948,86648.0,86646.0,0.23082427]
[1745258631712,0.24235954,86649.0,86646.0,0.23082427]
[1745258632029,0.24235988,86648.0,86645.0,0.01154134]
[1745258632237,0.01154094,86648.0,86645.0,0.01154134]
[1745258632729,0.001,86647.0,86645.0,0.01154134]
[1745258632931,0.002,86647.0,86645.0,0.01154134]
[1745258633360,0.002,86647.0,86646.0,0.23082427]
[1745258633596,0.001,86648.0,86647.0,0.2308216]
[1745258633818,0.001,86648.0,86647.0,0.23312948]
[1745258634076,0.00601931,86677.0,86674.0,0.01153748]
[1745258634289,0.01069444,86682.0,86681.0,0.23073107]
[1745258635120,0.01153442,86697.0,86693.0,0.24223407]
[1745258635351,0.0008452,86699.0,86698.0,0.23068582]
[1745258636618,0.0028452,86699.0,86698.0,0.23068582]
[1745258636820,0.0008452,86699.0,86698.0,0.23068582]
[1745258637250,0.0028452,86699.0,86698.0,0.23068582]
[1745258639469,0.0038452,86699.0,86698.0,0.23068582]
[1745258639890,0.0028452,86699.0,86698.0,0.23068582]
[1745258640094,0.0018452,86699.0,86698.0,0.23068582]
[1745258640300,0.0038452,86699.0,86698.0,0.23068582]
[1745258642175,0.0028452,86699.0,86698.0,0.23068582]
[1745258642405,0.0008452,86699.0,86698.0,0.23068582]
[1745258642644,0.0008452,86699.0,86698.0,0.27688582]
[1745258643114,0.0008452,86699.0,86698.0,0.27788582]
[1745258643385,0.0008452,86699.0,86698.0,0.39164176]
[1745258643843,0.0008452,86699.0,86698.0,0.73164176]
[1745258644084,0.0008452,86699.0,86698.0,0.73064176]
[1745258644302,0.0008452,86699.0,86698.0,0.57068582]
[1745258645314,0.0008452,86699.0,86698.0,0.57168582]
[1745258646676,0.0008436,86714.0,86708.0,0.57065922]
[1745258646848,1e-08,86717.0,86716.0,0.57063794]
[1745258647023,0.0008448,86733.0,86716.0,0.57063794]
[1745258647024,0.0008448,86733.0,86723.0,0.57061932]
[1745258647243,0.0008448,86733.0,86732.0,0.61809539]
[1745258647451,1e-08,86734.0,86733.0,0.34]
[1745258648111,1e-08,86734.0,86733.0,0.36135064]
[1745258648486,1e-08,86734.0,86733.0,0.34]
[1745258648690,1e-08,86734.0,86733.0,0.35159007]
[1745258649431,1e-08,86734.0,86733.0,0.35259007]
[1745258649812,0.004,86739.0,86733.0,0.35259007]
[1745258649813,0.0008446,86749.0,86740.0,0.24210282]
[1745258650059,0.3804,86778.0,86739.0,0.23057636]
[1745258650060,0.004,86799.0,86780.0,0.01152339]
[1745258650272,0.23043725,86792.0,86785.0,0.23045457]
[1745258650466,0.004,86799.0,86765.0,0.01152538]
[1745258650467,0.001843,86786.0,86765.0,0.01152538]
[1745258650779,0.001843,86786.0,86784.0,0.23045647]
[1745258651013,0.11375594,86785.0,86784.0,0.23045647]
[1745258652407,0.11675594,86785.0,86784.0,0.23045647]
[1745258652609,0.11375594,86785.0,86784.0,0.23045647]
[1745258652818,0.11575594,86785.0,86784.0,0.23045647]
[1745258653027,0.11775594,86785.0,86784.0,0.23045647]
[1745258654461,0.004,86785.0,86784.0,0.23045647]
[1745258655069,0.002,86785.0,86784.0,0.23045647]
[1745258655264,0.001843,86786.0,86784.0,0.23045647]
[1745258655488,0.002,86785.0,86784.0,0.23045647]
[1745258655718,0.004,86785.0,86784.0,0.23045647]
[1745258658836,0.006,86785.0,86784.0,0.23045647]
[1745258659243,0.002,86785.0,86784.0,0.23045647]
[1745258659669,0.003,86785.0,86784.0,0.23045647]
[1745258659908,0.11475594,86785.0,86774.0,0.23048378]
[1745258660133,0.24200783,86775.0,86756.0,0.01152658]
[1745258660348,0.11375594,86774.0,86767.0,0.23050076]
[1745258660599,0.11375594,86774.0,86772.0,0.23048745]
[1745258660810,0.01152458,86771.0,86768.0,0.23049849]
[1745258661014,0.01152458,86771.0,86764.0,0.01152551]
[1745258661015,0.24201138,86773.0,86770.0,0.23049286]
[1745258661262,0.12004,86776.0,86775.0,0.23048112]
[1745258661471,0.001,86785.0,86784.0,0.23045722]
[1745258661675,0.0115214,86795.0,86785.0,0.23045457]
[1745258661889,0.11559894,86786.0,86785.0,0.23045457]
[1745258662113,0.001843,86786.0,86785.0,0.23045457]
[1745258662762,0.006843,86786.0,86785.0,0.23045457]
[1745258664326,0.006843,86786.0,86785.0,0.25177505]
[1745258668259,0.003843,86786.0,86785.0,0.25177505]
[1745258668428,0.004843,86786.0,86785.0,0.25177505]
[1745258668895,0.002843,86786.0,86785.0,0.25177505]
[1745258669103,0.003843,86786.0,86785.0,0.25177505]
[1745258669416,0.002843,86786.0,86785.0,0.25177505]
[1745258669623,0.003843,86786.0,86785.0,0.23045457]
[1745258670227,0.002843,86786.0,86785.0,0.23045457]
[1745258670566,0.003843,86786.0,86785.0,0.23045457]
[1745258670781,0.001843,86786.0,86785.0,0.23045457]
[1745258670986,0.000843,86786.0,86785.0,0.23045457]
[1745258671335,0.002843,86786.0,86785.0,0.23045457]
[1745258674323,0.001843,86786.0,86785.0,0.23045457]
[1745258674764,0.002843,86786.0,86785.0,0.23045457]
[1745258675833,0.002843,86786.0,86784.0,0.23045703]
[1745258676037,0.01152312,86782.0,86772.0,0.23048904]
[1745258676212,0.01152299,86783.0,86777.0,0.24199952]
[1745258676425,0.01152325,86781.0,86775.0,0.24200413]
[1745258676632,0.01152339,86780.0,86776.0,0.24200196]
[1745258676883,0.23047076,86779.0,86776.0,0.24200196]
[1745258677294,0.01152339,86780.0,86777.0,0.24199799]
[1745258677669,0.11375594,86783.0,86780.0,0.01152339]
[1745258677867,0.12527893,86783.0,86780.0,0.24199099]
[1745258678138,0.23046295,86782.0,86780.0,0.01152339]
[1745258678348,0.23046295,86782.0,86778.0,0.23046761]
[1745258678349,0.24198844,86781.0,86776.0,0.24200091]
[1745258678512,0.0232097,86780.0,86776.0,0.01152392]
[1745258678731,0.01068631,86780.0,86777.0,0.01152379]
[1745258679057,0.24115546,86780.0,86777.0,0.24199933]
[1745258679562,0.01068631,86779.0,86777.0,0.24199933]
[1745258680405,0.01068631,86778.0,86777.0,0.01152379]
[1745258680582,0.01152392,86776.0,86773.0,0.01152432]
[1745258680936,0.01152392,86776.0,86773.0,0.24200977]
[1745258681258,0.23050575,86766.0,86763.0,0.01152565]
[1745258681560,0.23050575,86766.0,86745.0,0.01454085]
[1745258681561,0.2305246,86759.0,86753.0,0.01152697]
[1745258681753,0.01152591,86761.0,86758.0,0.24205126]
[1745258681981,0.24204221,86762.0,86758.0,0.24205126]
[1745258682195,0.01152578,86762.0,86759.0,0.24204965]
[1745258682401,0.01068631,86761.0,86759.0,0.24204965]
[1745258682618,0.252731,86761.0,86758.0,0.24205126]
[1745258682824,0.252731,86761.0,86751.0,0.23054259]
[1745258682825,0.01152658,86756.0,86751.0,0.01152724]
[1745258683033,0.01152658,86756.0,86754.0,0.23053687]
[1745258684391,0.24205948,86756.0,86754.0,0.001]
[1745258685187,0.3442902,86755.0,86754.0,0.001]
[1745258685389,0.37563355,86755.0,86754.0,0.001]
[1745258685597,0.79555486,86755.0,86754.0,0.001]
[1745258686057,0.80622347,86755.0,86754.0,0.001]
[1745258686258,0.24211011,86738.0,86735.0,0.01152937]
[1745258686454,0.15729461,86755.0,86750.0,0.23054596]
[1745258686659,0.24208697,86746.0,86742.0,0.01152844]
[1745258686854,0.24209206,86744.0,86738.0,0.01152897]
[1745258687062,0.23056896,86742.0,86735.0,0.01152937]
[1745258687268,0.01152897,86738.0,86735.0,0.01152937]
[1745258687703,0.23058565,86736.0,86734.0,0.0008422]
[1745258689238,0.24211404,86737.0,86734.0,0.0008422]
[1745258689648,0.23058621,86736.0,86734.0,0.0008422]
[1745258690002,0.23058621,86736.0,86734.0,0.0018422]
[1745258690236,0.24211404,86737.0,86734.0,0.0018422]
[1745258690594,0.12528411,86744.0,86739.0,0.01152883]
[1745258690801,0.11375594,86741.0,86740.0,0.0115287]
[1745258691219,0.11375594,86741.0,86739.0,0.01152883]
[1745258692099,0.0115287,86740.0,86735.0,0.23058742]
[1745258692248,0.23058024,86738.0,86735.0,0.23058742]
[1745258692452,0.11375594,86739.0,86737.0,0.23058096]
[1745258692720,0.11375594,86739.0,86736.0,0.01152923]
[1745258692721,0.35586301,86739.0,86736.0,0.01152923]
[1745258692919,0.01152897,86738.0,86734.0,0.24295955]
[1745258693117,0.23058321,86737.0,86734.0,0.24295955]
[1745258693350,0.35586284,86739.0,86735.0,0.24211549]
[1745258693682,0.35586284,86739.0,86736.0,0.23058397]
[1745258693889,0.23058019,86738.0,86735.0,0.01152937]
[1745258694241,0.23058019,86738.0,86735.0,0.24211626]
[1745258694397,0.11375594,86739.0,86737.0,0.23058169]
[1745258694844,0.12528477,86739.0,86736.0,0.24211087]
[1745258695296,0.23055149,86749.0,86743.0,0.0115283]
[1745258695501,0.11375594,86748.0,86747.0,0.24208293]
[1745258695711,0.11375594,86748.0,86747.0,0.01152777]
[1745258695902,0.11375594,86748.0,86746.0,0.24208555]
[1745258696029,0.11375594,86748.0,86747.0,0.23055552]
[1745258696477,0.01152697,86753.0,86749.0,0.23054922]
[1745258696680,0.23055118,86749.0,86746.0,0.24208555]
[1745258696880,0.01152724,86751.0,86746.0,0.24208555]
[1745258696881,0.001,86748.0,86746.0,0.24208555]
[1745258697083,0.001,86748.0,86747.0,0.23055552]
[1745258697291,0.001,86748.0,86733.0,0.01152963]
[1745258697292,0.01152897,86738.0,86733.0,0.01152963]
[1745258697465,0.01152857,86741.0,86737.0,0.23058186]
[1745258697660,0.12528451,86741.0,86739.0,0.23057642]
[1745258697864,0.11375594,86741.0,86739.0,0.23057642]
[1745258698092,0.11375594,86741.0,86740.0,0.23057412]
[1745258698309,0.11375594,86741.0,86738.0,0.01152897]
[1745258698518,0.23057452,86740.0,86737.0,0.2421104]
[1745258698725,0.0115287,86740.0,86737.0,0.0115291]
[1745258699059,0.0115287,86740.0,86738.0,0.23057913]
[1745258699268,0.12528451,86741.0,86738.0,0.23057913]
[1745258699900,0.11375594,86741.0,86740.0,0.23057412]
[1745258701341,0.01152737,86750.0,86740.0,0.23057412]
[1745258701552,0.11375594,86749.0,86746.0,0.24208453]
[1745258701751,0.34430647,86749.0,86746.0,0.24208453]
[1745258701953,0.23055482,86748.0,86744.0,0.23056124]
[1745258702156,0.24305887,86756.0,86749.0,0.01152751]
[1745258702362,0.001,86756.0,86755.0,0.23053426]
[1745258703021,0.001,86756.0,86755.0,0.23383962]
[1745258703439,0.001,86756.0,86755.0,0.23153426]
[1745258703653,0.002,86756.0,86755.0,0.23153426]
[1745258703881,0.002,86756.0,86755.0,0.23383928]
[1745258704089,0.003,86756.0,86755.0,0.23583928]
[1745258704313,1e-08,86756.0,86755.0,0.7825902]
[1745258704515,1e-08,86756.0,86755.0,0.7805902]
[1745258704963,1e-08,86756.0,86755.0,0.66683426]
[1745258706024,0.11772,86784.0,86783.0,0.23045988]
[1745258706234,0.23147594,86784.0,86783.0,0.23045988]
[1745258706791,0.000843,86786.0,86785.0,0.23045457]
[1745258707048,0.11459894,86786.0,86785.0,0.23045457]
[1745258709118,0.11659894,86786.0,86785.0,0.23045457]
[1745258709537,0.11459894,86786.0,86785.0,0.23045457]
[1745258709683,0.11659894,86786.0,86785.0,0.23045457]
[1745258710305,0.11559894,86786.0,86785.0,0.23045457]
[1745258710502,0.11659894,86786.0,86785.0,0.23045457]
[1745258712594,0.11659894,86786.0,86783.0,0.24198287]
[1745258712595,0.11659894,86786.0,86783.0,0.23045988]
[1745258712819,0.23046266,86782.0,86780.0,0.02]
[1745258713035,0.54775594,86781.0,86780.0,0.02]
[1745258713264,0.71842811,86781.0,86780.0,0.02]
[1745258715371,0.72042811,86781.0,86780.0,0.02]
[1745258715811,0.72242811,86781.0,86780.0,0.02]
[1745258717318,1.13832811,86781.0,86780.0,0.02]
[1745258717752,1.15967591,86781.0,86780.0,0.02]
[1745258719750,1.28796881,86781.0,86780.0,0.02]
[1745258719977,1.17421676,86781.0,86780.0,0.02]
[1745258720622,1.17221676,86781.0,86780.0,0.02]
[1745258720819,1.17621676,86781.0,86780.0,0.02]
[1745258722027,1.17021676,86781.0,86780.0,0.02]
[1745258722332,1.17521676,86781.0,86780.0,0.02]
[1745258722525,1.17321676,86781.0,86780.0,0.02]
[1745258722732,1.17021676,86781.0,86780.0,0.02]
[1745258723027,1.40368195,86781.0,86780.0,0.02]
[1745258723232,1.40668195,86781.0,86780.0,0.02]
[1745258724577,1.52420195,86781.0,86780.0,0.02]
[1745258726644,1.637954,86781.0,86780.0,0.02]
[1745258727083,1.637954,86781.0,86741.0,0.10399327]
[1745258727084,0.5705316,86756.0,86741.0,0.0924647]
[1745258727288,1.02928839,86756.0,86741.0,0.0924647]
[1745258727489,1.06130836,86756.0,86741.0,0.0924647]
[1745258728478,1.06230836,86756.0,86741.0,0.0924647]
[1745258728684,1.17606041,86756.0,86741.0,0.0924647]
[1745258728887,1.48020836,86756.0,86741.0,0.0924647]
[1745258729261,1.54000272,86756.0,86741.0,0.0924647]
[1745258729437,1.12210272,86756.0,86741.0,0.0924647]
[1745258729795,1.12210272,86756.0,86731.0,0.0923069]
[1745258729796,0.57059539,86732.0,86731.0,0.0923069]
[1745258730011,0.95675133,86732.0,86731.0,0.0923069]
[1745258730220,0.9887713,86732.0,86731.0,0.0923069]
[1745258731239,1.00031279,86732.0,86731.0,0.0923069]
[1745258731917,1.02391218,86732.0,86731.0,0.0953069]
[1745258732317,1.02391218,86732.0,86731.0,0.002]
[1745258732497,0.23062198,86722.0,86721.0,0.0924647]
[1745258732695,0.34437792,86722.0,86721.0,0.0924647]
[1745258732909,0.36778699,86722.0,86721.0,0.0924647]
[1745258733524,0.02340907,86722.0,86721.0,0.32408934]
[1745258733719,0.001,86722.0,86721.0,0.37458934]
[1745258733963,0.001,86722.0,86721.0,0.42418934]
[1745258734115,0.1224,86749.0,86741.0,0.01152857]
[1745258734319,0.01152844,86742.0,86736.0,0.23058476]
[1745258734546,0.01152937,86735.0,86727.0,0.01153043]
[1745258734750,0.0115287,86740.0,86734.0,0.0115295]
[1745258734955,0.11375594,86741.0,86739.0,0.23057636]
[1745258735349,0.1224,86749.0,86744.0,0.05802817]
[1745258735557,0.12528358,86748.0,86744.0,0.0465]
[1745258735767,0.11375594,86748.0,86746.0,0.23055704]
[1745258735914,0.11375594,86748.0,86745.0,0.23055782]
[1745258735915,0.12528358,86748.0,86745.0,0.23055782]
[1745258736118,0.35583793,86748.0,86745.0,0.23055782]
[1745258736323,0.11375594,86748.0,86746.0,0.23055716]
[1745258736613,0.11375594,86748.0,86746.0,0.23055761]
[1745258736830,0.01067217,86757.0,86756.0,0.2305316]
[1745258737148,0.03423268,86757.0,86756.0,0.2305316]
[1745258737344,0.01152591,86761.0,86756.0,0.2305316]
[1745258737634,0.11375594,86760.0,86758.0,0.23052508]
[1745258737847,0.01152418,86774.0,86769.0,0.23049548]
[1745258737978,0.01152472,86770.0,86767.0,0.23050215]
[1745258738184,0.01152538,86765.0,86757.0,0.27782848]
[1745258738383,0.12528145,86764.0,86757.0,0.0473]
[1745258738593,0.14493203,86764.0,86757.0,0.0473]
[1745258738826,0.14493203,86764.0,86759.0,0.01152618]
[1745258739022,0.01152565,86763.0,86759.0,0.01152618]
[1745258739318,0.11375594,86762.0,86759.0,0.01152618]
[1745258739638,0.01964338,86761.0,86759.0,0.24204768]
[1745258739799,0.13339932,86761.0,86759.0,0.24204768]
[1745258740421,0.11375594,86761.0,86759.0,0.24204768]
[1745258740624,0.01964097,86760.0,86759.0,0.24204768]
[1745258741050,0.11375594,86761.0,86759.0,0.24204768]
[1745258741256,0.01964097,86760.0,86759.0,0.24204768]
[1745258741932,0.24201436,86772.0,86768.0,0.23049961]
[1745258742133,0.01152485,86769.0,86764.0,0.24203406]
[1745258742340,0.01152511,86767.0,86763.0,0.23051179]
[1745258742546,0.13341133,86766.0,86763.0,0.24203744]
[1745258742765,0.01152578,86762.0,86758.0,0.23052591]
[1745258742973,0.01152565,86763.0,86759.0,0.23052101]
[1745258743172,0.01964338,86761.0,86757.0,0.0473]
[1745258743522,0.01152658,86756.0,86753.0,0.23053912]
[1745258743651,0.01964097,86760.0,86757.0,0.23052823]
[1745258743857,0.35580144,86761.0,86758.0,0.23052449]
[1745258743858,0.11375594,86761.0,86758.0,0.23052449]
[1745258744062,0.11375594,86761.0,86758.0,0.24205162]
[1745258744249,0.11375594,86761.0,86759.0,0.2305224]
[1745258744896,0.11375594,86761.0,86758.0,0.24205179]
[1745258745095,0.01964097,86760.0,86759.0,0.001]
[1745258745271,0.01964097,86760.0,86758.0,0.24205179]
[1745258745490,0.01152538,86765.0,86762.0,0.23051485]
[1745258745666,0.11375594,86764.0,86762.0,0.23051485]
[1745258746936,0.24202558,86768.0,86763.0,0.2420379]
[1745258747140,0.24200876,86774.0,86766.0,0.01152525]
[1745258747341,0.11375594,86774.0,86771.0,0.01152458]
[1745258747579,0.11375594,86774.0,86771.0,0.24201475]
[1745258747768,0.11375594,86774.0,86773.0,0.23048644]
[1745258748178,0.11375594,86774.0,86771.0,0.23049017]
[1745258748318,0.11375594,86774.0,86771.0,0.24201475]
[1745258748511,0.11375594,86774.0,86771.0,0.01152458]
[1745258748724,0.11375594,86774.0,86773.0,0.23048644]
[1745258748927,0.11575594,86774.0,86773.0,0.23048644]
[1745258749140,0.11575594,86774.0,86770.0,0.0473]
[1745258749342,0.01152525,86766.0,86762.0,0.23051381]
[1745258749666,0.01152445,86772.0,86765.0,0.01152538]
[1745258749823,0.24201327,86773.0,86770.0,0.23049336]
[1745258750032,0.24201327,86773.0,86771.0,0.23049127]
[1745258750231,0.2304916,86772.0,86768.0,0.23049842]
[1745258750457,0.01152432,86773.0,86769.0,0.01152485]
[1745258750659,0.34524185,86774.0,86771.0,0.23048955]
[1745258751075,0.34424185,86774.0,86771.0,0.23048955]